[Event "Germany Countries-chT Youth 2022"]
[Site "Wiesbaden"]
[Date "2022.10.02"]
[Round "3"]
[White "Buchinger, Alexis"]
[Black "Braun, Julian"]
[Result "1-0"]
[ECO "C50"]
[WhiteElo "1802"]
[BlackElo "1715"]
[Annotator "NA COMBH RC"]
[PlyCount "101"]
[EventDate "2022.09.28"]
[EventType "team-tourn"]
[EventRounds "7"]
[EventCountry "GER"]
[SourceTitle "playchess.com"]
[Source "ChessBase"]
[SourceQuality "1"]
[TimeControl "40/5400+30:1800+30"]

1. e4 {[%emt 0:00:05]} e5 {[%emt 0:00:01]} 2. Nf3 {[%emt 0:00:06]} Nc6 {[%emt 0:00:03]} 3. Bc4 {[%emt 0:00:04]} Bc5 {[%emt 0:00:06]} 4. O-O {[%emt 0:00:13]} Nf6 {[%emt 0:00:18]} 5. d3 {[%emt 0:00:05]} O-O {[%emt 0:00:15]} 6. a4 {[%emt 0:00:14]} a5 {[%emt 0:01:00]} 7. Re1 {[%emt 0:01:42]} h6 {[%emt 0:02:28]} 8. Nbd2 {[%emt 0:02:32]} d6 $11 {[%emt 0:03:56]} 9. c3 {[%emt 0:01:35]} Re8 {[%emt 0:01:40]} 10. Nf1 {[%emt 0:01:29]} Be6 {[%emt 0:04:06]} 11. Qb3 {[%emt 0:04:28]} Qd7 {[%emt 0:01:44]} 12. Be3 {[%emt 0:02:38]} Bxc4 {[%emt 0:02:05]} 13. Qxc4 {[%emt 0:00:48]} Bxe3 {[%emt 0:00:30]} 14. Nxe3 {[%emt 0:00:18]} Rad8 {[%emt 0:03:28]} 15. Rad1 {[%emt 0:01:30]} d5 {[%emt 0:09:13]} 16. exd5 {[%emt 0:00:16]} Nxd5 {[%emt 0:00:23]} 17. Nxd5 {[%emt 0:01:01]} Qxd5 {[%emt 0:02:14]} 18. Qxd5 {[%emt 0:00:53]} Rxd5 {[%emt 0:00:04]} 19. Kf1 {[%emt 0:07:34]} Kf8 {[%emt 0:03:18]} 20. Rd2 {[%emt 0:04:41]} b6 {[%emt 0:06:04]} 21. Red1 {[%emt 0:00:52]} Red8 {[%emt 0:02:26]} 22. Ke2 {[%emt 0:00:48]} Ke7 {[%emt 0:00:46]} 23. Ke3 {[%emt 0:00:24]} Ke6 {[%emt 0:00:30]} 24. d4 {[%emt 0:01:06]} exd4+ {[%emt 0:06:06]} 25. Nxd4+ {[%emt 0:00:09]} Nxd4 {[%emt 0:00:24]} 26. Rxd4 {[%emt 0:00:11]} Rxd4 {[%emt 0:01:14]} 27. Rxd4 {[%emt 0:00:04]} Rxd4 {[%emt 0:00:49]} 28. Kxd4 {[%emt 0:00:05]} Kd6 {[%emt 0:00:33]} 29. b4 {[%emt 0:01:02]} c5+ {[%emt 0:02:06]} 30. bxc5+ {[%emt 0:01:17]} bxc5+ {[%emt 0:00:03]} 31. Kc4 {[%emt 0:00:18]} Kc6 {[%emt 0:00:09]} 32. g4 {[%emt 0:00:58]} g6 {[%emt 0:03:06]} 33. h4 {[%emt 0:02:00]} f6 {[%emt 0:08:00]} 34. h5 {[%emt 0:00:50]} gxh5 {[%emt 0:01:20]} 35. gxh5 {[%emt 0:00:06]} f5 {[%emt 0:00:22]} 36. f4 {[%emt 0:00:03]} Kd6 {[%emt 0:01:03]} 37. Kb5 {[%emt 0:00:05]} Kd5 {[%emt 0:00:51]} 38. Kxa5 {[%emt 0:00:04]} Ke4 {[%emt 0:00:33]} 39. Kb5 {[%emt 0:00:10]} Kxf4 {[%emt 0:00:07]} 40. a5 {[%emt 0:00:04]} Ke3 {[%emt 0:01:05]} 41. a6 {[%emt 0:30:06]} f4 {[%emt 0:30:06]} 42. a7 {[%emt 0:00:04]} f3 {[%emt 0:00:15]} 43. a8=Q {[%emt 0:00:11]} f2 {[%emt 0:00:30]} 44. Qg2 {[%emt 0:00:11]} Ke2 {[%emt 0:00:16]} 45. Kxc5 {[%emt 0:00:06]} Ke1 {[%emt 0:00:09]} 46. Kd6 {[%emt 0:00:28]} f1=Q {[%emt 0:00:13]} 47. Qxf1+ {[%emt 0:00:18]} Kxf1 {[%emt 0:00:03]} 48. Ke6 {[%emt 0:00:21]} Ke2 {[%emt 0:00:10]} 49. c4 {[%emt 0:00:06]} Ke3 {[%emt 0:00:09]} 50. c5 {[%emt 0:00:07]} Kf4 {[%emt 0:00:05] #10} 51. Kf6 {[%emt 0:31:17]} 1-0

[Event "Germany Countries-chT Youth 2022"]
[Site "Wiesbaden"]
[Date "2022.10.02"]
[Round "3"]
[White "Semling, Julius"]
[Black "Haubold, Christian Lucas"]
[Result "0-1"]
[ECO "C50"]
[WhiteElo "1801"]
[BlackElo "1888"]
[Annotator "NA RC COMBH"]
[PlyCount "58"]
[EventDate "2022.09.28"]
[EventType "team-tourn"]
[EventRounds "7"]
[EventCountry "GER"]
[SourceTitle "playchess.com"]
[Source "ChessBase"]
[SourceQuality "1"]
[TimeControl "40/5400+30:1800+30"]

1. e4 {[%emt 0:00:02]} e5 {[%emt 0:00:09]} 2. Nf3 {[%emt 0:00:04]} Nc6 {[%emt 0:00:09]} 3. Bc4 {[%emt 0:00:05]} Nf6 {[%emt 0:00:19]} 4. d3 {[%emt 0:00:01]} Bc5 {[%emt 0:00:34]} 5. c3 {[%emt 0:00:11]} d6 {[%emt 0:00:38]} 6. O-O {[%emt 0:00:20]} Bg4 {[%emt 0:00:56]} 7. Nbd2 {[%emt 0:02:18]} Qd7 {[%emt 0:06:13]} 8. b4 {[%emt 0:02:53]} Bb6 {[%emt 0:00:47]} 9. a4 {[%emt 0:01:22]} a5 {[%emt 0:05:06]} 10. b5 {[%emt 0:01:15]} Ne7 {[%emt 0:00:42]} 11. Qc2 {[%emt 0:09:53]} Ng6 {[%emt 0:06:01]} 12. d4 {[%emt 0:05:57]} (12. h3 $2 {[#]} Bxh3 $1 13. Ne1 Nf4 $17) 12... h6 {[%emt 0:05:04]} 13. Be2 {[%emt 0:04:46]} exd4 {[%emt 0:07:31]} 14. Nc4 {[%emt 0:08:34]} (14. cxd4 $11 O-O 15. Re1) 14... Bc5 {[%emt 0:15:28]} 15. cxd4 $14 {[%emt 0:10:05]} Bxf3 {[%emt 0:02:58]} 16. dxc5 {[%emt 0:02:11]} Bxe4 {[%emt 0:05:58]} 17. Bd3 {[%emt 0:01:04]} d5 {[%emt 0:13:16]} 18. Ne3 {[%emt 0:04:12]} Ne5 {[%emt 0:03:47]} 19. Bxe4 {[%emt 0:01:25]} dxe4 {[%emt 0:01:52]} 20. Rd1 {[%emt 0:03:11]} Qe6 {[%emt 0:01:25]} 21. b6 {[%emt 0:02:07]} O-O {[%emt 0:02:06]} 22. Bb2 {[%emt 0:00:46]} Nd3 {[%emt 0:02:50]} 23. Bxf6 {[%emt 0:02:24]} Qxf6 {[%emt 0:00:10]} 24. Nd5 {[%emt 0:00:46]} Qe5 {[%emt 0:01:30]} 25. Nxc7 {[%emt 0:00:30]} Rad8 {[%emt 0:00:37]} 26. Nb5 {[%emt 0:03:16]} e3 {[%emt 0:01:14]} 27. Qe2 {[%emt 0:07:15]} exf2+ {[%emt 0:00:32]} 28. Kf1 {[%emt 0:00:09]} Qxh2 {[%emt 0:00:25]} 29. Qf3 {[%emt 0:01:18]} Rfe8 {[%emt 0:00:33]} 0-1

[Event "Germany Countries-chT Youth 2022"]
[Site "Wiesbaden"]
[Date "2022.10.02"]
[Round "3"]
[White "Voigt, Anastasia"]
[Black "Fischer, Darja"]
[Result "0-1"]
[ECO "B28"]
[WhiteElo "1772"]
[BlackElo "1738"]
[Annotator "NA RC COMBH"]
[PlyCount "128"]
[EventDate "2022.09.28"]
[EventType "team-tourn"]
[EventRounds "7"]
[EventCountry "GER"]
[SourceTitle "playchess.com"]
[Source "ChessBase"]
[SourceQuality "1"]
[TimeControl "40/5400+30:1800+30"]

1. e4 {[%emt 0:00:01]} c5 {[%emt 0:00:01]} 2. Nf3 {[%emt 0:00:06]} a6 {[%emt 0:00:04]} 3. c3 {[%emt 0:00:15]} d5 {[%emt 0:00:04]} 4. exd5 {[%emt 0:01:04]} Qxd5 {[%emt 0:00:03]} 5. d4 {[%emt 0:01:37]} Bg4 {[%emt 0:00:14]} 6. Be2 {[%emt 0:00:46]} e6 {[%emt 0:00:29]} 7. O-O {[%emt 0:01:24]} Nf6 {[%emt 0:00:46]} 8. Be3 {[%emt 0:01:34]} cxd4 {[%emt 0:00:28]} 9. Nxd4 {[%emt 0:03:13]} Bxe2 {[%emt 0:00:38]} 10. Qxe2 {[%emt 0:00:52]} Be7 {[%emt 0:01:25]} 11. Nd2 {[%emt 0:01:00]} O-O {[%emt 0:01:24]} 12. N2f3 {[%emt 0:00:48]} Nbd7 {[%emt 0:03:24]} 13. Rfd1 {[%emt 0:01:51]} Rfd8 {[%emt 0:05:36]} 14. Bf4 {[%emt 0:22:47]} Qh5 {[%emt 0:10:07]} 15. Re1 {[%emt 0:05:33]} Nc5 {[%emt 0:10:22]} 16. Qc2 {[%emt 0:07:30]} Nd5 {[%emt 0:12:18]} 17. Bg3 {[%emt 0:01:58]} Rac8 {[%emt 0:03:12]} 18. Rad1 Bf6 {[%emt 0:11:07]} 19. Nb3 {[%emt 0:07:56]} Na4 {[%emt 0:04:36]} 20. Be5 {[%emt 0:06:20]} Bxe5 {[%emt 0:03:26]} 21. Rxe5 {[%emt 0:00:37]} Qg6 {[%emt 0:00:35]} 22. Qxg6 {[%emt 0:01:15]} hxg6 {[%emt 0:00:03]} 23. Re2 {[%emt 0:02:56]} b5 {[%emt 0:05:24]} 24. Rd4 {[%emt 0:03:17]} Rc7 {[%emt 0:05:26]} 25. h3 {[%emt 0:00:37]} Rdc8 {[%emt 0:01:33]} 26. Ne5 {[%emt 0:03:23]} Ndb6 {[%emt 0:04:18]} 27. Na5 {[%emt 0:07:32]} Nd5 {[%emt 0:00:54]} 28. Red2 {[%emt 0:02:09]} Nab6 {[%emt 0:01:59]} 29. Nd3 {[%emt 0:04:43]} Nc4 {[%emt 0:01:44]} 30. Nxc4 {[%emt 0:00:22]} Rxc4 {[%emt 0:00:02]} 31. Ne5 {[%emt 0:00:15]} R4c7 {[%emt 0:00:55]} 32. a4 {[%emt 0:02:34]} Kf8 {[%emt 0:04:27]} 33. Kf1 {[%emt 0:02:34]} Ke7 {[%emt 0:01:23]} 34. Ke2 {[%emt 0:00:51]} g5 {[%emt 0:01:58]} 35. Kf3 {[%emt 0:00:52]} f6 {[%emt 0:00:41]} 36. Ng4 {[%emt 0:01:00]} f5 {[%emt 0:02:44]} 37. Ne3 {[%emt 0:01:59]} Nxe3 {[%emt 0:01:31]} 38. Kxe3 {[%emt 0:00:20]} Kf6 {[%emt 0:01:51]} 39. Rb4 {[%emt 0:01:13]} Rc5 {[%emt 0:01:22]} 40. Rd6 {[%emt 0:00:59]} Re5+ {[%emt 0:01:25]} 41. Kd3 {[%emt 0:30:55]} Ra8 {[%emt 0:04:39]} 42. Kd2 {[%emt 0:00:00]} Ke7 {[%emt 0:04:05]} 43. Rbd4 {[%emt 0:00:00]} Ra7 {[%emt 0:01:14]} 44. a5 {[%emt 0:00:00]} Re4 {[%emt 0:01:49]} 45. Rxe4 {[%emt 0:00:00]} Kxd6 {[%emt 0:00:08]} 46. Rd4+ {[%emt 0:00:00]} Kc6 {[%emt 0:04:37]} 47. b4 {[%emt 0:00:00]} e5 {[%emt 0:05:01]} 48. Rd8 {[%emt 0:00:00]} Rd7+ {[%emt 0:00:34]} 49. Rxd7 {[%emt 0:00:00]} Kxd7 {[%emt 0:00:04]} 50. Kd3 {[%emt 0:00:00]} Kd6 {[%emt 0:00:14]} 51. c4 {[%emt 0:00:00]} bxc4+ {[%emt 0:00:04]} 52. Kxc4 {[%emt 0:00:00]} Kc6 {[%emt 0:00:01]} 53. f3 {[%emt 0:00:48]} e4 {[%emt 0:05:38]} 54. fxe4 {[%emt 0:00:32]} fxe4 {[%emt 0:00:01]} 55. Kd4 {[%emt 0:01:53]} Kb5 {[%emt 0:00:04]} 56. Kxe4 {[%emt 0:00:06]} Kxb4 {[%emt 0:00:08]} 57. Kd4 {[%emt 0:02:40]} Kxa5 {[%emt 0:00:11]} 58. Kc5 {[%emt 0:01:17]} Ka4 {[%emt 0:00:50]} 59. Kc4 {[%emt 0:01:26]} a5 {[%emt 0:00:08]} 60. g3 {[%emt 0:00:43]} Ka3 {[%emt 0:00:45]} 61. Kc3 {[%emt 0:00:35]} a4 {[%emt 0:00:20]} 62. h4 {[%emt 0:00:50]} g4 {[%emt 0:01:27]} 63. h5 {[%emt 0:00:31]} Ka2 {[%emt 0:00:05]} 64. Kc2 {[%emt 0:00:03]} a3 {[%emt 0:00:10]} 0-1

[Event "Germany Countries-chT Youth 2022"]
[Site "Wiesbaden"]
[Date "2022.10.02"]
[Round "3"]
[White "Zoellner, Bente"]
[Black "Trunz, Michelle"]
[Result "1/2-1/2"]
[ECO "A80"]
[WhiteElo "1756"]
[BlackElo "1821"]
[Annotator "NA RC COMBH"]
[PlyCount "112"]
[EventDate "2022.09.28"]
[EventType "team-tourn"]
[EventRounds "7"]
[EventCountry "GER"]
[SourceTitle "playchess.com"]
[Source "ChessBase"]
[SourceQuality "1"]
[TimeControl "40/5400+30:1800+30"]

1. d4 {[%emt 0:00:03]} f5 {[%emt 0:00:04]} 2. Nf3 {[%emt 0:00:15]} Nf6 {[%emt 0:00:16]} 3. c4 {[%emt 0:00:18]} e6 {[%emt 0:00:14]} 4. g3 {[%emt 0:00:27]} d5 {[%emt 0:01:10]} 5. Bg2 {[%emt 0:00:34]} c6 {[%emt 0:00:24]} 6. O-O {[%emt 0:00:57]} Bd6 {[%emt 0:00:07]} 7. b3 {[%emt 0:00:30]} Qe7 {[%emt 0:00:12]} 8. a4 {[%emt 0:00:42]} O-O {[%emt 0:00:33]} 9. Ba3 {[%emt 0:00:35]} Bxa3 {[%emt 0:01:39]} 10. Nxa3 {[%emt 0:00:13]} b6 {[%emt 0:00:38]} 11. Nc2 {[%emt 0:01:45]} Bb7 {[%emt 0:00:29]} 12. Nce1 {[%emt 0:01:23]} Nbd7 {[%emt 0:00:42]} 13. Nd3 {[%emt 0:01:01]} Rfd8 {[%emt 0:01:49]} 14. Nfe5 {[%emt 0:03:18]} Rac8 {[%emt 0:02:04]} 15. e3 {[%emt 0:05:46]} c5 {[%emt 0:01:18]} 16. a5 $11 {[%emt 0:05:17]} Nxe5 {[%emt 0:17:00]} 17. Nxe5 {[%emt 0:07:14]} Qd6 {[%emt 0:07:30]} 18. axb6 {[%emt 0:06:01]} Qxb6 {[%emt 0:00:45]} 19. Ra2 {[%emt 0:05:49]} Nd7 {[%emt 0:05:04]} 20. Qa1 {[%emt 0:02:53]} Nxe5 {[%emt 0:02:45]} 21. dxe5 {[%emt 0:01:04]} Ra8 {[%emt 0:03:01]} 22. cxd5 {[%emt 0:08:06]} Bxd5 {[%emt 0:00:25]} 23. Bxd5 {[%emt 0:00:20]} exd5 {[%emt 0:02:42]} 24. Qc3 {[%emt 0:01:42]} Rd7 {[%emt 0:03:48]} 25. Rd1 {[%emt 0:01:47]} Rc8 {[%emt 0:03:51]} 26. Rad2 {[%emt 0:01:07]} Qe6 {[%emt 0:01:10]} 27. f4 {[%emt 0:02:10]} Qc6 {[%emt 0:04:07]} 28. Qd3 {[%emt 0:03:43]} g6 {[%emt 0:00:54]} 29. Ra2 {[%emt 0:04:49]} Rb8 {[%emt 0:02:45]} 30. Ra5 {[%emt 0:04:41]} Qb6 {[%emt 0:05:18]} 31. Qc3 {[%emt 0:03:26]} Rc8 {[%emt 0:06:22]} 32. Rda1 {[%emt 0:05:59]} c4 {[%emt 0:03:15]} 33. bxc4 {[%emt 0:04:30]} Rxc4 {[%emt 0:09:03]} 34. Qd3 {[%emt 0:02:10]} Re4 {[%emt 0:03:41]} 35. Ra6 {[%emt 0:05:33]} Rxe3 {[%emt 0:05:12]} 36. Rxb6 {[%emt 0:01:08]} Rxd3 {[%emt 0:00:04]} 37. Rba6 {[%emt 0:00:21]} g5 {[%emt 0:02:26]} 38. Rxa7 {[%emt 0:01:47]} Rxa7 {[%emt 0:00:28]} 39. Rxa7 {[%emt 0:00:11]} gxf4 {[%emt 0:00:55]} 40. gxf4 {[%emt 0:07:53]} Rd4 {[%emt 0:01:19]} 41. Ra8+ {[%emt 0:31:53]} Kf7 {[%emt 0:31:45]} 42. Ra7+ {[%emt 0:00:56]} Kg6 {[%emt 0:00:51]} 43. Ra6+ {[%emt 0:00:37]} Kh5 {[%emt 0:01:14]} 44. Ra7 {[%emt 0:00:00]} Kg4 {[%emt 0:00:00]} 45. Rxh7 {[%emt 0:00:00]} Kxf4 {[%emt 0:00:00]} 46. e6 {[%emt 0:00:00]} Kg5 {[%emt 0:00:00]} 47. Rf7 {[%emt 0:00:00]} Kg6 {[%emt 0:00:00]} 48. Rf8 {[%emt 0:00:00]} Re4 {[%emt 0:00:00]} 49. Rd8 {[%emt 0:00:00]} Rxe6 {[%emt 0:00:00]} 50. Rxd5 {[%emt 0:00:00]} Re2 {[%emt 0:00:00]} 51. Rd4 {[%emt 0:00:00]} Kf6 {[%emt 0:00:00]} 52. Rf4 {[%emt 0:00:00]} Ke5 {[%emt 0:00:00]} 53. Rf2 {[%emt 0:00:00]} Re4 {[%emt 0:00:00]} 54. h3 {[%emt 0:00:00]} Rh4 {[%emt 0:00:00]} 55. Kg2 {[%emt 0:00:00]} f4 {[%emt 0:00:00]} 56. Ra2 {[%emt 0:00:00]} Rh8 {[%emt 0:00:00]} 1/2-1/2

[Event "Germany Countries-chT Youth 2022"]
[Site "Wiesbaden"]
[Date "2022.10.02"]
[Round "3"]
[White "Wylie, Leonard"]
[Black "Vranckx, Oscar"]
[Result "0-1"]
[ECO "B22"]
[WhiteElo "1721"]
[BlackElo "1583"]
[Annotator "NA RC COMBH"]
[PlyCount "67"]
[EventDate "2022.09.28"]
[EventType "team-tourn"]
[EventRounds "7"]
[EventCountry "GER"]
[SourceTitle "playchess.com"]
[Source "ChessBase"]
[SourceQuality "1"]
[TimeControl "40/5400+30:1800+30"]

1. e4 {[%emt 0:00:03]} c5 {[%emt 0:00:03]} 2. c3 {[%emt 0:00:07]} e5 {[%emt 0:00:13]} 3. Nf3 {[%emt 0:00:20]} Nc6 {[%emt 0:00:10]} 4. Bc4 {[%emt 0:00:27]} h6 {[%emt 0:00:53]} 5. O-O {[%emt 0:00:52]} Nf6 {[%emt 0:00:48]} 6. d4 {[%emt 0:02:01]} cxd4 {[%emt 0:01:19]} 7. cxd4 {[%emt 0:01:23]} exd4 {[%emt 0:01:07]} 8. Nxd4 {[%emt 0:00:31]} Bc5 {[%emt 0:00:16]} 9. Nxc6 {[%emt 0:00:35]} dxc6 {[%emt 0:01:33]} 10. Nc3 {[%emt 0:05:30]} Qc7 {[%emt 0:01:28]} 11. e5 {[%emt 0:01:54]} Ng4 {[%emt 0:00:52]} 12. Bf4 {[%emt 0:00:38]} O-O {[%emt 0:00:27]} 13. h3 {[%emt 0:01:35]} Nxe5 {[%emt 0:02:21]} 14. Ne4 {[%emt 0:12:46]} Qe7 {[%emt 0:00:42]} 15. Bb3 {[%emt 0:01:47]} Ng6 {[%emt 0:02:41]} 16. Nxc5 {[%emt 0:01:57]} Nxf4 {[%emt 0:00:12]} 17. Qf3 {[%emt 0:02:43]} Nxh3+ {[%emt 0:00:23]} 18. gxh3 {[%emt 0:00:13]} Qxc5 {[%emt 0:00:07]} 19. Rfe1 {[%emt 0:01:42]} Qf5 {[%emt 0:00:55]} 20. Qxf5 {[%emt 0:01:03]} Bxf5 {[%emt 0:00:55]} 21. Re7 {[%emt 0:00:09]} b6 {[%emt 0:00:41]} 22. Rc7 {[%emt 0:00:30]} Bxh3 {[%emt 0:00:41]} 23. Re1 {[%emt 0:00:25]} Rac8 {[%emt 0:00:09]} 24. Rxa7 {[%emt 0:00:36]} c5 {[%emt 0:00:33]} 25. Bc4 {[%emt 0:00:50]} Bf5 {[%emt 0:00:10]} 26. Ree7 {[%emt 0:01:26]} Bg6 {[%emt 0:00:14]} 27. Rab7 {[%emt 0:01:58]} Rc6 {[%emt 0:00:06]} 28. Kg2 {[%emt 0:01:51]} Rf6 {[%emt 0:00:15]} 29. Kg3 {[%emt 0:00:20]} Rd8 {[%emt 0:00:12]} 30. f3 {[%emt 0:01:33]} Rd4 {[%emt 0:00:16]} 31. b3 {[%emt 0:00:23]} Rdf4 {[%emt 0:00:05]} 32. Bd5 {[%emt 0:02:03]} Bh5 {[%emt 0:00:24]} 33. Be4 {[%emt 0:01:29]} g5 {[%emt 0:00:21]} 34. Re8+ {[%emt 0:00:25]} 0-1

[Event "Germany Countries-chT Youth 2022"]
[Site "Wiesbaden"]
[Date "2022.10.02"]
[Round "3"]
[White "Prinzen, Siri Marleen"]
[Black "Braeutigam, Katerina"]
[Result "1-0"]
[ECO "A45"]
[WhiteElo "1719"]
[BlackElo "1873"]
[Annotator "NA RC COMBH"]
[PlyCount "81"]
[EventDate "2022.09.28"]
[EventType "team-tourn"]
[EventRounds "7"]
[EventCountry "GER"]
[SourceTitle "playchess.com"]
[Source "ChessBase"]
[SourceQuality "1"]
[TimeControl "40/5400+30:1800+30"]

1. d4 {[%emt 0:00:02]} Nf6 {[%emt 0:00:05]} 2. Bf4 {[%emt 0:00:04]} b6 {[%emt 0:00:34]} 3. e3 {[%emt 0:01:12]} Bb7 {[%emt 0:00:11]} 4. Nf3 {[%emt 0:00:22]} g6 {[%emt 0:00:38]} 5. c4 {[%emt 0:01:22]} Bg7 {[%emt 0:00:15]} 6. Nc3 {[%emt 0:00:36]} d6 {[%emt 0:00:55]} 7. Bd3 {[%emt 0:03:41]} Nbd7 {[%emt 0:00:51]} 8. O-O {[%emt 0:02:28]} O-O {[%emt 0:03:38]} 9. h3 {[%emt 0:01:35]} Re8 {[%emt 0:02:01]} 10. Bh2 {[%emt 0:04:12]} e5 {[%emt 0:04:12]} 11. Bc2 {[%emt 0:02:10]} exd4 {[%emt 0:23:23]} 12. Nxd4 {[%emt 0:06:08]} Nc5 {[%emt 0:07:11]} 13. Rb1 {[%emt 0:08:57]} Qe7 {[%emt 0:10:01]} 14. a3 {[%emt 0:07:23]} Nfe4 {[%emt 0:19:16]} 15. Nxe4 {[%emt 0:03:00]} Bxe4 {[%emt 0:01:24]} 16. Bxe4 {[%emt 0:01:22]} Qxe4 {[%emt 0:01:22]} 17. Nb5 {[%emt 0:03:06]} Re7 {[%emt 0:05:57]} 18. b4 {[%emt 0:08:19]} Nd3 {[%emt 0:03:36]} 19. Qc2 {[%emt 0:06:46]} a6 {[%emt 0:01:51]} 20. Nd4 {[%emt 0:00:34]} Bxd4 {[%emt 0:10:14]} 21. exd4 {[%emt 0:00:13]} Nf4 {[%emt 0:02:22]} 22. Qxe4 {[%emt 0:01:26]} Rxe4 {[%emt 0:00:02]} 23. Bxf4 {[%emt 0:02:29]} Rxf4 {[%emt 0:00:01]} 24. Rfd1 $11 {[%emt 0:06:09]} Re8 {[%emt 0:00:25]} 25. Rb2 {[%emt 0:00:55]} Ree4 {[%emt 0:01:41]} 26. Rbd2 {[%emt 0:00:35]} Kf8 {[%emt 0:00:47]} 27. Kh2 {[%emt 0:05:25]} Rf6 {[%emt 0:00:30]} 28. f3 {[%emt 0:04:14]} Re3 {[%emt 0:00:24]} 29. Rd3 {[%emt 0:00:24]} Rfe6 {[%emt 0:00:22]} 30. d5 {[%emt 0:08:25]} Re7 {[%emt 0:00:42]} 31. R1d2 {[%emt 0:03:51]} Re1 {[%emt 0:00:20]} 32. c5 {[%emt 0:01:10]} bxc5 {[%emt 0:00:38]} 33. bxc5 {[%emt 0:00:18]} dxc5 {[%emt 0:00:23]} 34. Rc2 {[%emt 0:00:29]} R1e3 {[%emt 0:00:43]} 35. Rxe3 {[%emt 0:01:04]} Rxe3 {[%emt 0:00:01]} 36. Rxc5 {[%emt 0:00:43]} Rxa3 {[%emt 0:00:31]} 37. Rxc7 {[%emt 0:00:15]} Rb3 {[%emt 0:00:52]} 38. d6 {[%emt 0:01:39]} Ke8 {[%emt 0:00:35]} 39. Re7+ {[%emt 0:01:40]} Kf8 {[%emt 0:00:09]} 40. Ra7 {[%emt 0:00:27]} Rb6 {[%emt 0:00:46]} 41. Ra8+ {[%emt 0:30:15]} 1-0

[Event "Germany Countries-chT Youth 2022"]
[Site "Wiesbaden"]
[Date "2022.10.02"]
[Round "3"]
[White "Yue, Qizhou"]
[Black "Woerz, Ann-Sophie"]
[Result "1/2-1/2"]
[ECO "B33"]
[WhiteElo "1711"]
[BlackElo "1607"]
[Annotator "NA RC COMBH"]
[PlyCount "54"]
[EventDate "2022.09.28"]
[EventType "team-tourn"]
[EventRounds "7"]
[EventCountry "GER"]
[SourceTitle "playchess.com"]
[Source "ChessBase"]
[SourceQuality "1"]
[TimeControl "40/5400+30:1800+30"]

1. e4 {[%emt 0:00:05]} c5 {[%emt 0:00:07]} 2. Nf3 {[%emt 0:00:06]} Nc6 {[%emt 0:00:09]} 3. d4 {[%emt 0:00:08]} cxd4 {[%emt 0:00:05]} 4. Nxd4 {[%emt 0:00:08]} Nf6 {[%emt 0:00:07]} 5. Nc3 {[%emt 0:00:23]} g6 {[%emt 0:00:54]} 6. Be2 {[%emt 0:02:28]} Bg7 {[%emt 0:00:49]} 7. Nb3 {[%emt 0:01:25]} d6 {[%emt 0:01:23]} 8. O-O {[%emt 0:01:15]} a6 {[%emt 0:01:15]} 9. Re1 {[%emt 0:03:21]} O-O {[%emt 0:01:19]} 10. Bf1 {[%emt 0:02:39]} Ne5 {[%emt 0:05:30]} 11. Bg5 {[%emt 0:07:20]} h6 {[%emt 0:03:36]} 12. Bh4 {[%emt 0:02:32]} g5 {[%emt 0:06:08]} 13. Bg3 {[%emt 0:03:13]} Bg4 {[%emt 0:03:33]} 14. f3 {[%emt 0:02:51]} Bd7 {[%emt 0:00:50]} 15. Nd5 {[%emt 0:05:50]} Nh5 {[%emt 0:06:40]} 16. Bf2 {[%emt 0:06:22]} Rb8 {[%emt 0:09:02]} 17. Bb6 {[%emt 0:05:28]} Qe8 {[%emt 0:01:09]} 18. Nd4 {[%emt 0:07:27]} Nf6 {[%emt 0:07:23]} 19. Qd2 {[%emt 0:05:12]} Nxd5 {[%emt 0:04:00]} 20. exd5 {[%emt 0:00:09]} Rc8 {[%emt 0:01:38]} 21. f4 {[%emt 0:02:49]} gxf4 {[%emt 0:04:36]} 22. Qxf4 {[%emt 0:00:16]} Nc4 {[%emt 0:01:20]} 23. Bxc4 {[%emt 0:01:22]} Rxc4 {[%emt 0:00:09]} 24. c3 {[%emt 0:01:13]} e5 {[%emt 0:02:19]} 25. dxe6 {[%emt 0:00:20]} fxe6 {[%emt 0:00:37]} 26. Qxd6 {[%emt 0:01:08]} Rf6 {[%emt 0:02:53]} 27. Ba5 {[%emt 0:09:49]} Rg6 {[%emt 0:12:19]} 1/2-1/2

[Event "Germany Countries-chT Youth 2022"]
[Site "Wiesbaden"]
[Date "2022.10.02"]
[Round "3"]
[White "Keymer, Cecilia"]
[Black "Dohon, Maria-Johanna"]
[Result "1-0"]
[ECO "E65"]
[WhiteElo "1696"]
[BlackElo "1430"]
[Annotator "NA RC COMBH"]
[PlyCount "57"]
[EventDate "2022.09.28"]
[EventType "team-tourn"]
[EventRounds "7"]
[EventCountry "GER"]
[SourceTitle "playchess.com"]
[Source "ChessBase"]
[SourceQuality "1"]
[TimeControl "40/5400+30:1800+30"]

1. d4 {[%emt 0:00:03]} Nf6 {[%emt 0:00:06]} 2. c4 {[%emt 0:00:06]} g6 {[%emt 0:00:24]} 3. g3 {[%emt 0:00:57]} Bg7 {[%emt 0:00:21]} 4. Bg2 {[%emt 0:00:09]} O-O {[%emt 0:00:11]} 5. Nc3 {[%emt 0:00:25]} d6 {[%emt 0:00:24]} 6. Nf3 {[%emt 0:00:57]} c5 {[%emt 0:00:40]} 7. O-O {[%emt 0:03:13]} Na6 {[%emt 0:03:27]} 8. b3 {[%emt 0:03:59]} Nc7 {[%emt 0:04:43]} 9. Bb2 {[%emt 0:03:20]} a6 {[%emt 0:00:28]} 10. a4 {[%emt 0:04:05]} Rb8 {[%emt 0:06:56]} 11. a5 {[%emt 0:04:54]} Nd7 {[%emt 0:10:05]} 12. e3 {[%emt 0:07:21]} Re8 {[%emt 0:03:33]} 13. Qc2 {[%emt 0:06:10]} e5 {[%emt 0:08:52]} 14. Rfd1 {[%emt 0:03:55]} Qe7 {[%emt 0:02:04]} 15. dxe5 {[%emt 0:05:12]} dxe5 {[%emt 0:01:30]} 16. Ne4 {[%emt 0:03:29]} Ne6 {[%emt 0:04:22]} 17. Rd2 {[%emt 0:02:49]} f5 {[%emt 0:08:24]} 18. Nd6 {[%emt 0:00:37]} Rd8 {[%emt 0:01:44]} 19. Rad1 {[%emt 0:01:40]} e4 {[%emt 0:08:34]} 20. Nh4 {[%emt 0:04:06]} Ne5 {[%emt 0:06:13]} 21. Nhxf5 {[%emt 0:10:36]} gxf5 {[%emt 0:08:05]} 22. Nxf5 {[%emt 0:00:34]} Qc7 {[%emt 0:03:13]} 23. Rxd8+ {[%emt 0:02:24]} Nxd8 {[%emt 0:00:09]} 24. Nxg7 {[%emt 0:03:07]} Kxg7 {[%emt 0:01:16]} 25. Rxd8 {[%emt 0:00:51]} Kh6 {[%emt 0:06:36]} 26. Rd5 {[%emt 0:04:53]} Nf3+ {[%emt 0:07:51]} 27. Bxf3 {[%emt 0:04:37]} exf3 {[%emt 0:00:07]} 28. Qe4 {[%emt 0:03:12]} Qxa5 {[%emt 0:02:19]} 29. Qh4+ {[%emt 0:00:30]} 1-0